bitfinex/quotes_BTCUSD_20251224
["timestamp","ask_amount","ask_price","bid_price","bid_amount"]
[1766578654395,0.08445,87384.0,87375.0,0.02292492]
[1766578654615,0.08445,87384.0,87378.0,0.01144452]
[1766578654817,0.08445,87384.0,87377.0,0.01144465]
[1766578655201,0.08445,87384.0,87378.0,0.01144452]
[1766578656230,0.08445,87384.0,87375.0,0.02292492]
[1766578656405,0.08445,87384.0,87375.0,0.01148]
[1766578656604,0.08445,87384.0,87376.0,0.01144479]
[1766578657509,0.08445,87384.0,87375.0,0.08014922]
[1766578657745,0.08445,87384.0,87376.0,0.01144479]
[1766578658123,0.08445,87384.0,87376.0,0.02292479]
[1766578658328,0.08445,87384.0,87376.0,0.01148]
[1766578658752,0.01144387,87383.0,87373.0,0.01144518]
[1766578659039,0.01144413,87381.0,87374.0,0.01148]
[1766578659419,0.06866486,87381.0,87374.0,0.01148]
[1766578659622,0.01144413,87381.0,87374.0,0.01148]
[1766578659804,0.01144426,87380.0,87374.0,0.01148]
[1766578660009,0.06866488,87381.0,87374.0,0.0115868]
[1766578660805,0.06866488,87381.0,87369.0,0.07176318]
[1766578660806,0.01144452,87378.0,87369.0,0.003089]
[1766578661001,0.18147463,87360.0,87339.0,0.15863]
[1766578661205,0.18147463,87360.0,87352.0,0.01144793]
[1766578661206,0.123691,87360.0,87352.0,0.01144793]
[1766578661398,0.123691,87360.0,87351.0,0.01159]
[1766578661526,0.123691,87360.0,87351.0,0.02303806]
[1766578661731,0.123691,87360.0,87353.0,0.0114478]
[1766578661953,0.123691,87360.0,87352.0,0.06868731]
[1766578662159,0.13513788,87360.0,87351.0,0.02303806]
[1766578662360,0.01144793,87352.0,87340.0,0.1243195]
[1766578662531,0.12424,87355.0,87344.0,0.01144898]
[1766578662736,0.12424,87355.0,87345.0,0.06869296]
[1766578662976,0.01144767,87354.0,87345.0,0.01144885]
[1766578663316,0.01144859,87347.0,87340.0,0.00010682]
[1766578663499,0.13568832,87349.0,87340.0,0.00010682]
[1766578663500,0.000549,87345.0,87340.0,0.00010682]
[1766578663701,0.12424,87349.0,87340.0,0.05735434]
[1766578663915,0.12424,87349.0,87340.0,0.06880384]
[1766578664111,0.13568832,87349.0,87340.0,0.00010682]
[1766578664313,0.13568832,87349.0,87340.0,0.01155632]
[1766578664922,0.13568832,87349.0,87340.0,0.00010682]
[1766578665108,0.01144859,87347.0,87340.0,0.00010682]
[1766578665308,0.13568859,87347.0,87340.0,0.00010682]
[1766578666803,0.12424,87347.0,87340.0,0.00010682]
[1766578670165,0.13568859,87347.0,87340.0,0.00010682]
[1766578670518,0.12424,87347.0,87340.0,0.00010682]
[1766578670720,0.12424,87347.0,87340.0,0.01155632]
[1766578671648,0.12424,87347.0,87340.0,0.00010682]
[1766578671852,0.13568859,87347.0,87340.0,0.00010682]
[1766578672271,0.12424,87347.0,87340.0,0.00010682]
[1766578673878,0.12424,87347.0,87340.0,0.01155632]
[1766578674079,0.12424,87347.0,87340.0,0.00010682]
[1766578674279,0.12424,87347.0,87340.0,0.01155632]
[1766578674628,0.12424,87347.0,87340.0,0.00010682]
[1766578674871,0.12424,87347.0,87340.0,0.01155632]
[1766578675669,0.12424,87347.0,87341.0,0.06869616]
[1766578675846,0.12424,87347.0,87340.0,0.00010682]
[1766578676400,0.12424,87347.0,87340.0,0.06880364]
[1766578677372,0.12424,87347.0,87340.0,0.01155632]
[1766578678306,0.12424,87347.0,87340.0,0.00010682]
[1766578678517,0.12424,87347.0,87340.0,0.01155632]
[1766578678842,0.01144872,87346.0,87340.0,0.00010682]
[1766578678990,0.06869439,87345.0,87340.0,0.00010682]
[1766578679192,0.01144911,87343.0,87340.0,8.2e-07]
[1766578679395,0.06869314,87345.0,87340.0,8.2e-07]
[1766578679598,0.06869347,87346.0,87340.0,8.2e-07]
[1766578680018,0.01144885,87345.0,87340.0,8.2e-07]
[1766578681132,0.06869347,87346.0,87340.0,8.2e-07]
[1766578681698,0.19293276,87347.0,87340.0,8.2e-07]
[1766578682075,0.12424,87347.0,87340.0,8.2e-07]
[1766578682299,0.01148,87348.0,87341.0,0.01144937]
[1766578682435,0.08017104,87348.0,87340.0,8.2e-07]
[1766578682638,0.01148,87348.0,87340.0,8.2e-07]
[1766578683020,0.13765809,87346.0,87340.0,8.2e-07]
[1766578683191,0.01144859,87347.0,87320.0,0.13308213]
[1766578683192,0.1841013,87335.0,87320.0,0.13308213]
[1766578683430,0.01145055,87332.0,87326.0,0.01148]
[1766578683635,0.00011,87330.0,87326.0,0.01148]
[1766578683837,0.18410211,87334.0,87326.0,0.01148]
[1766578683982,0.12685029,87334.0,87326.0,0.01148]
[1766578684196,0.12685029,87334.0,87323.0,0.05725844]
[1766578684197,0.1154,87334.0,87325.0,0.01145147]
[1766578684391,0.1154,87334.0,87327.0,0.01145121]
[1766578684926,0.1154,87334.0,87326.0,0.01145134]
[1766578685385,0.1154,87334.0,87325.0,0.01148]
[1766578685608,0.0687028,87333.0,87325.0,0.01148]
[1766578685791,0.01145068,87331.0,87325.0,0.01148]
[1766578686198,0.01145081,87330.0,87325.0,0.01148]
[1766578686401,0.01145068,87331.0,87325.0,0.01148]
[1766578686609,0.06870428,87331.0,87325.0,0.01148]
[1766578686768,0.06870452,87332.0,87325.0,0.01148]
[1766578686931,0.01145068,87331.0,87323.0,0.12163]
[1766578687132,0.01145068,87331.0,87323.0,0.13311]
[1766578687133,0.0687049,87330.0,87323.0,0.13311]
[1766578687345,0.01145081,87330.0,87323.0,0.13311]
[1766578688765,0.06870491,87330.0,87323.0,0.13311]
[1766578688973,0.01145094,87329.0,87323.0,0.13311]
[1766578689790,0.01145068,87331.0,87323.0,0.13311]
[1766578692762,0.06870459,87332.0,87323.0,0.14456173]
[1766578692763,0.01145055,87332.0,87323.0,0.14456173]
[1766578694460,0.01145068,87331.0,87323.0,0.13311]
[1766578694623,0.06870365,87332.0,87323.0,0.13311]
[1766578695124,0.06870365,87332.0,87323.0,0.14456173]
[1766578695472,0.01145055,87332.0,87323.0,0.14456173]
[1766578696573,0.06870372,87332.0,87323.0,0.14456173]
[1766578696778,0.1841019,87334.0,87324.0,0.0687095]
[1766578696989,0.01145068,87331.0,87323.0,0.13311]
[1766578697202,0.06870459,87331.0,87323.0,0.13311]
[1766578700173,0.01145068,87331.0,87323.0,0.13311]
[1766578700990,0.06870455,87332.0,87323.0,0.13311]
[1766578702285,0.06870455,87332.0,87323.0,0.14456173]
[1766578702518,0.01145068,87331.0,87323.0,0.13311]
[1766578702721,0.06870435,87331.0,87323.0,0.13311]
[1766578703776,0.01145081,87330.0,87323.0,0.13311]
[1766578704219,0.06870577,87329.0,87323.0,0.13311]
[1766578704426,0.22900854,87333.0,87315.0,0.00011]
[1766578704427,0.01145199,87321.0,87315.0,0.00011]
[1766578704636,0.01145226,87319.0,87315.0,0.00011]
[1766578704814,0.01145226,87319.0,87290.0,0.36330667]
[1766578704815,0.05726537,87313.0,87302.0,0.01145449]
[1766578705026,0.1154,87315.0,87313.0,0.00055]
[1766578705417,0.1154,87315.0,87308.0,0.01148]
[1766578705843,0.1154,87313.0,87307.0,0.01145383]
[1766578706048,0.1154,87313.0,87310.0,0.01145344]
[1766578706259,0.01148,87317.0,87308.0,0.05726789]
[1766578706260,0.01148,87317.0,87313.0,0.00055]
[1766578706688,0.01148,87317.0,87315.0,0.05726364]
[1766578706890,0.01148,87317.0,87314.0,0.0687174]
[1766578707446,0.01093,87317.0,87314.0,0.0687174]
[1766578707657,0.01148,87321.0,87318.0,0.01145239]
[1766578707858,0.01148,87321.0,87316.0,0.01145265]
[1766578708059,0.01148,87321.0,87315.0,0.06871654]
[1766578708211,0.01148,87321.0,87315.0,0.01145278]
[1766578708419,0.01148,87321.0,87314.0,0.0687173]
[1766578708968,0.01148,87321.0,87313.0,0.13293717]
[1766578709386,0.01148,87321.0,87313.0,0.12148413]
[1766578709604,0.01148,87321.0,87304.0,0.22908378]
[1766578709605,0.01145252,87317.0,87308.0,0.0114537]
[1766578709798,0.01145265,87316.0,87307.0,0.13608]
[1766578710070,0.01145304,87313.0,87302.0,0.00035627]
[1766578710269,0.00055,87307.0,87302.0,0.00035627]
[1766578710466,0.00055,87307.0,87303.0,0.01148]
[1766578710614,0.13269344,87310.0,87303.0,0.01148]
[1766578711032,0.13269344,87310.0,87302.0,0.00035627]
[1766578711033,0.12124,87308.0,87299.0,0.01148]
[1766578711211,0.12124,87308.0,87299.0,0.0802621]
[1766578711414,0.12124,87308.0,87300.0,0.06872843]
[1766578712099,0.12124,87308.0,87302.0,0.01145449]
[1766578713380,0.12124,87308.0,87301.0,0.0687275]
[1766578713516,0.12124,87308.0,87302.0,0.01145449]
[1766578713724,0.12124,87308.0,87301.0,0.01145462]
[1766578715559,0.12124,87308.0,87301.0,0.01131022]
[1766578715768,0.12124,87308.0,87299.0,0.08026234]
[1766578715769,0.17851376,87300.0,87299.0,3.05e-06]
[1766578717168,0.12124,87300.0,87299.0,3.05e-06]
[1766578717610,0.17851376,87300.0,87299.0,3.05e-06]
[1766578724561,0.05728426,87284.0,87283.0,1e-08]
[1766578724702,0.05728426,87284.0,87283.0,0.00010692]
[1766578724904,0.01145724,87281.0,87275.0,0.01148]
[1766578725122,0.06874364,87281.0,87275.0,0.01148]
[1766578725488,0.01145737,87280.0,87275.0,0.01148]
[1766578725744,0.01145737,87280.0,87271.0,0.00030084]
[1766578725745,0.01145816,87274.0,87271.0,0.00030084]
[1766578725959,0.01145803,87275.0,87271.0,0.00030084]
[1766578726173,0.01145816,87274.0,87271.0,0.00030084]
[1766578726383,0.06874866,87275.0,87271.0,0.00030084]
[1766578726806,0.06914749,87276.0,87271.0,0.00030084]
[1766578727008,0.0004,87276.0,87271.0,0.00030084]
[1766578727679,0.0118579,87276.0,87271.0,0.00030084]
[1766578727892,0.0118579,87276.0,87261.0,0.01145987]
[1766578727893,0.11385,87270.0,87261.0,0.01145987]
[1766578728188,0.1133,87270.0,87263.0,0.06875709]
[1766578728388,0.1133,87270.0,87264.0,0.01145947]
[1766578728548,0.1133,87270.0,87265.0,0.01145934]
[1766578729780,0.1133,87270.0,87266.0,0.01145921]
[1766578729988,0.1133,87270.0,87265.0,0.01145934]
[1766578730502,0.1133,87270.0,87264.0,0.06875672]
[1766578730661,4.316e-05,87271.0,87267.0,0.01145908]
[1766578730862,4.316e-05,87271.0,87266.0,0.01145921]
[1766578731084,4.316e-05,87271.0,87267.0,0.01145908]
[1766578731260,4.316e-05,87271.0,87264.0,0.06875673]
[1766578731468,4.316e-05,87271.0,87265.0,0.01145934]
[1766578731796,4.316e-05,87271.0,87266.0,0.01145921]
[1766578731997,4.316e-05,87271.0,87267.0,0.01145908]
[1766578732567,4.316e-05,87271.0,87268.0,0.01145895]
[1766578733911,4.316e-05,87271.0,87267.0,0.0687543]
[1766578734509,4.316e-05,87271.0,87268.0,0.01145895]
[1766578734715,4.316e-05,87271.0,87268.0,0.0687534]
[1766578734936,4.316e-05,87271.0,87268.0,0.01145895]
[1766578735142,4.316e-05,87271.0,87270.0,0.05729345]
[1766578735390,0.0004,87276.0,87273.0,0.06874948]
[1766578735586,0.0004,87276.0,87271.0,0.11924]
[1766578735767,0.0004,87276.0,87271.0,0.13069856]
[1766578736143,0.0004,87276.0,87271.0,0.11924]
[1766578736949,0.0004,87276.0,87271.0,0.13069856]
[1766578737572,0.0004,87276.0,87271.0,0.11924]
[1766578737774,0.0004,87276.0,87271.0,0.13069856]
[1766578738124,0.0004,87276.0,87272.0,0.01145842]
[1766578738325,0.0004,87276.0,87273.0,0.01145829]
[1766578738695,0.0004,87276.0,87273.0,0.06874968]
[1766578740550,0.0004,87276.0,87273.0,0.01145829]
[1766578741186,0.0004,87276.0,87274.0,0.05729072]
[1766578741388,0.17113419,87285.0,87274.0,0.05729072]
[1766578741389,0.11385,87285.0,87278.0,0.01145764]
[1766578741673,0.01148,87283.0,87278.0,0.01145764]
[1766578741876,0.01148,87283.0,87278.0,0.06874536]
[1766578742099,0.06873639,87290.0,87280.0,0.01145737]
[1766578742236,0.01145606,87290.0,87281.0,0.13083724]
[1766578742453,0.02293593,87291.0,87283.0,0.11879161]
[1766578742641,0.01148,87291.0,87283.0,0.06874182]
[1766578742845,0.01148,87291.0,87285.0,0.05728361]
[1766578743073,0.01148,87291.0,87284.0,0.01145685]
[1766578743234,0.01148,87295.0,87288.0,0.11938]
[1766578743432,3e-05,87295.0,87288.0,0.11938]
[1766578743694,0.05725381,87294.0,87288.0,0.11938]
[1766578743913,0.06870935,87294.0,87288.0,0.11938]
[1766578744313,0.01148,87295.0,87286.0,0.01145659]
[1766578744515,0.22908436,87305.0,87289.0,0.01145619]
[1766578744516,0.13053356,87305.0,87289.0,0.01145619]
[1766578744735,0.00122596,87301.0,87290.0,0.06873617]
[1766578744939,0.01145449,87302.0,87293.0,0.00011]
[1766578744940,0.05727371,87302.0,87293.0,0.00011]
[1766578745183,0.05727317,87301.0,87293.0,0.00011]
[1766578745367,0.01145449,87302.0,87293.0,0.00011]
[1766578745732,0.08618533,87304.0,87294.0,0.01145554]
[1766578745939,0.00597993,87304.0,87294.0,0.01145554]
[1766578746146,0.01145357,87309.0,87298.0,0.057275]
[1766578746343,0.01145357,87309.0,87298.0,0.06873001]
[1766578746344,0.05726844,87309.0,87298.0,0.06873001]
[1766578746546,0.01145357,87309.0,87298.0,0.06873001]
[1766578746728,0.06872161,87309.0,87298.0,0.06873001]
[1766578747300,0.24065323,87313.0,87300.0,0.06872845]
[1766578747301,0.01145331,87311.0,87300.0,0.06872845]
[1766578747469,0.01145344,87310.0,87299.0,0.02293488]
[1766578747913,0.01145344,87310.0,87299.0,0.08020876]
[1766578748121,0.01145344,87310.0,87301.0,0.01145462]
[1766578748326,0.0572672,87310.0,87299.0,0.02293488]
[1766578748544,0.01145317,87312.0,87302.0,0.01145449]
[1766578748744,0.01145331,87311.0,87301.0,0.01145462]
[1766578748947,0.02304304,87313.0,87303.0,0.01145436]
[1766578749173,0.00011,87313.0,87305.0,0.01145409]
[1766578749287,0.02293252,87317.0,87305.0,0.05727048]
[1766578749488,0.05726389,87316.0,87304.0,0.02293422]
[1766578749732,0.01145331,87311.0,87304.0,0.01148]
[1766578750280,0.06872034,87311.0,87304.0,0.01148]
[1766578750411,0.01145344,87310.0,87304.0,0.01148]
[1766578750817,0.01145317,87312.0,87304.0,0.01148]
[1766578751215,0.06871918,87312.0,87304.0,0.01148]
[1766578751412,0.06871918,87312.0,87305.0,0.01148]
[1766578751641,0.01145331,87311.0,87305.0,0.01148]
[1766578752206,0.06872014,87311.0,87305.0,0.01148]
[1766578752612,0.01145344,87310.0,87305.0,0.01148]
[1766578752926,0.06854124,87311.0,87305.0,0.01148]
[1766578753154,0.05726728,87310.0,87305.0,0.01148]
[1766578753333,0.22905889,87314.0,87305.0,0.01148]
[1766578753334,0.36397287,87320.0,87306.0,0.01148]
[1766578753536,0.01145252,87317.0,87306.0,0.02293396]
[1766578753735,0.01145252,87317.0,87306.0,0.01148]
[1766578753736,0.05726278,87317.0,87306.0,0.01148]
[1766578753976,0.0687153,87317.0,87306.0,0.01148]
[1766578754177,0.01145252,87317.0,87306.0,0.01148]
[1766578754339,0.01145239,87318.0,87306.0,0.01148]
[1766578754535,0.0687164,87316.0,87306.0,0.01148]
[1766578754878,0.01145265,87316.0,87306.0,0.01148]
[1766578755105,0.0687152,87317.0,87306.0,0.01148]
[1766578755382,0.01145239,87318.0,87307.0,0.01145383]
[1766578755602,0.61594799,87320.0,87310.0,0.01145344]
[1766578755603,0.01148,87320.0,87310.0,0.01145344]
[1766578755802,0.01148,87320.0,87311.0,0.05726632]
[1766578755952,0.01148,87320.0,87311.0,0.01145331]
[1766578756511,0.01148,87320.0,87312.0,0.01145317]
[1766578756704,0.01148,87320.0,87313.0,0.01145304]
[1766578757259,0.01148,87320.0,87312.0,0.06871872]
[1766578757480,0.01148,87320.0,87310.0,0.01145344]
[1766578757877,0.01145199,87321.0,87311.0,0.02293331]
[1766578758058,0.01145199,87321.0,87311.0,0.01148]
[1766578759045,0.06871043,87323.0,87310.0,0.43269333]
[1766578759252,0.01145173,87323.0,87312.0,0.01148]
[1766578759653,0.08029973,87324.0,87313.0,0.01145304]
[1766578759844,0.05725897,87323.0,87312.0,0.01148]
[1766578760037,0.08029973,87324.0,87312.0,0.01148]
[1766578760038,0.01145199,87321.0,87312.0,0.01148]
[1766578760463,0.01145213,87320.0,87312.0,0.01148]
[1766578760625,0.06871207,87321.0,87312.0,0.01148]
[1766578761024,0.01145226,87319.0,87312.0,0.01148]
[1766578761224,0.01145252,87317.0,87312.0,0.01148]
[1766578761493,0.06871536,87317.0,87312.0,0.01148]
[1766578762467,0.01145252,87317.0,87312.0,0.01148]
[1766578762957,0.05726524,87313.0,87312.0,0.01148]
[1766578763162,0.05726524,87313.0,87304.0,0.00011]
[1766578763163,0.01145331,87311.0,87309.0,0.01148]
[1766578763454,0.0572672,87310.0,87304.0,0.00011]
[1766578763671,0.11256,87315.0,87304.0,0.00011]
[1766578763962,0.11256,87315.0,87305.0,0.01148]
[1766578764173,0.12401278,87315.0,87305.0,0.02293409]
[1766578764375,0.05726351,87316.0,87306.0,0.01145396]
[1766578764376,0.01145265,87316.0,87306.0,0.01145396]
[1766578764532,0.01145265,87316.0,87305.0,0.02293409]
[1766578764737,0.06871521,87317.0,87306.0,0.01145396]
[1766578764933,0.01145252,87317.0,87307.0,0.01145383]
[1766578765255,0.01145199,87321.0,87308.0,0.0114537]
[1766578765455,0.01148,87320.0,87310.0,0.37542631]
[1766578765660,0.01145186,87322.0,87311.0,0.01148]
[1766578765861,0.05726001,87321.0,87311.0,0.01148]
[1766578766040,0.06871174,87322.0,87311.0,0.01148]
[1766578766424,0.06871065,87323.0,87310.0,0.43269348]
[1766578766636,0.00011,87324.0,87316.0,0.01145265]
[1766578766839,0.00011,87324.0,87311.0,0.01145331]
[1766578767035,0.05736806,87324.0,87313.0,0.01145304]
[1766578767235,0.01145173,87323.0,87312.0,0.01145317]
[1766578767491,0.01145173,87323.0,87313.0,0.01145304]
[1766578767692,0.01145173,87323.0,87312.0,0.01145317]
[1766578767914,0.01145186,87322.0,87312.0,0.01145317]
[1766578768132,0.0115616,87324.0,87313.0,0.06871798]
[1766578768274,0.01145173,87323.0,87311.0,0.08019985]
[1766578768476,0.01145186,87322.0,87311.0,0.02293331]
[1766578768677,0.01145213,87320.0,87278.0,0.606802]
[1766578768920,0.11911921,87321.0,87278.0,0.606802]
[1766578768921,0.05727011,87306.0,87292.0,0.06873476]
[1766578769122,0.06875011,87306.0,87295.0,0.0114554]
[1766578769326,0.01148,87306.0,87297.0,0.01145514]
[1766578769530,0.01148,87306.0,87296.0,0.06873156]
[1766578769884,0.01148,87306.0,87293.0,0.05738781]
[1766578770086,0.05727048,87305.0,87293.0,0.00011]
[1766578770282,0.01148,87306.0,87293.0,0.00011]
[1766578770528,0.06872892,87300.0,87293.0,0.00021664]
[1766578770737,0.01145488,87299.0,87293.0,0.00021664]
[1766578771143,0.02293462,87301.0,87293.0,0.00021664]
[1766578771347,0.01148,87301.0,87293.0,0.00021664]
[1766578772351,0.01148,87301.0,87294.0,0.01145554]
[1766578772607,0.01148,87301.0,87295.0,0.0114554]
[1766578772837,0.01148,87301.0,87297.0,0.01145514]
[1766578772987,0.01148,87301.0,87298.0,0.01145501]
[1766578773655,0.00598801,87301.0,87300.0,0.05727376]
[1766578773855,0.01145304,87313.0,87302.0,0.01145449]
[1766578774080,0.06871764,87314.0,87302.0,0.06872576]
[1766578774495,0.02293304,87313.0,87303.0,0.01145436]
[1766578774698,0.01145331,87311.0,87301.0,0.01145462]
[1766578774984,0.08019837,87313.0,87302.0,0.01145449]
[1766578775414,0.02293304,87313.0,87302.0,0.01145449]
[1766578775616,0.01145317,87312.0,87301.0,0.01145462]
[1766578776814,0.01145331,87311.0,87300.0,0.06872838]
[1766578776967,0.01145331,87311.0,87299.0,0.06872875]
[1766578777185,0.06872004,87311.0,87299.0,0.06872875]
[1766578777814,0.01145344,87310.0,87300.0,0.01145475]
[1766578778688,0.01145344,87310.0,87299.0,0.06872875]
[1766578779388,0.01145344,87310.0,87300.0,0.01145475]
[1766578779597,0.06872004,87311.0,87300.0,0.01145475]
[1766578779798,0.01145357,87309.0,87299.0,0.01145488]
[1766578780009,0.01148,87308.0,87298.0,0.06872882]
[1766578780207,0.01148,87308.0,87298.0,0.01145501]
[1766578780412,0.01148,87308.0,87296.0,0.02293527]
[1766578780413,0.08020225,87308.0,87296.0,0.0802116]
[1766578780623,0.01145409,87305.0,87296.0,0.01148]
[1766578781233,0.06872391,87306.0,87296.0,0.01148]
[1766578781805,0.01145396,87306.0,87296.0,0.02293527]
[1766578782012,0.01145396,87306.0,87296.0,0.01148]
[1766578782633,0.06872392,87306.0,87296.0,0.01148]
[1766578782987,0.01145422,87304.0,87296.0,0.01148]
[1766578783312,0.0687267,87303.0,87296.0,0.01148]
[1766578783621,0.06872583,87304.0,87296.0,0.01148]
[1766578784192,0.01145436,87303.0,87296.0,0.01148]
[1766578784549,0.06872624,87303.0,87296.0,0.01148]
[1766578785110,0.05727096,87305.0,87296.0,0.01148]
[1766578785317,0.01145383,87307.0,87296.0,0.01148]
[1766578785517,0.01145409,87305.0,87296.0,0.01148]
[1766578785721,0.05727055,87305.0,87296.0,0.01148]
[1766578786136,0.01145422,87304.0,87296.0,0.01148]
[1766578786335,0.06872464,87305.0,87296.0,0.01148]
[1766578787625,0.06872548,87304.0,87296.0,0.01148]
[1766578788222,0.01145436,87303.0,87296.0,0.01148]
[1766578788412,0.01145449,87302.0,87296.0,0.01148]
[1766578788612,0.06872646,87303.0,87296.0,0.01148]
[1766578788827,0.01145436,87303.0,87296.0,0.01148]
[1766578789118,0.08020642,87303.0,87293.0,0.00021664]
[1766578789759,0.08020642,87303.0,87293.0,0.01167231]
[1766578789931,0.02293436,87303.0,87293.0,0.00021664]
[1766578791369,0.08020651,87303.0,87293.0,0.00021664]
[1766578791567,0.01148,87303.0,87293.0,0.00021664]
[1766578791885,0.01148,87303.0,87296.0,0.01145527]
[1766578792088,0.01148,87303.0,87293.0,0.00021664]
[1766578792089,0.01148,87309.0,87301.0,0.05727262]
[1766578792296,0.01148,87311.0,87303.0,0.01145436]
[1766578792473,0.01148,87311.0,87302.0,0.06872678]
[1766578792705,0.01148,87311.0,87302.0,0.01145449]
[1766578792845,0.01148,87311.0,87303.0,0.01145436]
[1766578793192,0.01148,87311.0,87303.0,0.0687261]
[1766578793439,0.01148,87311.0,87304.0,0.01145422]
[1766578793989,0.01148,87311.0,87303.0,0.06872604]
[1766578794192,0.01148,87311.0,87304.0,0.01145422]
[1766578794928,0.01148,87311.0,87305.0,0.01145409]
[1766578795234,0.01145265,87316.0,87305.0,0.01145409]
[1766578795373,0.01148,87315.0,87305.0,0.06872447]
[1766578795777,0.02293278,87315.0,87305.0,0.01145409]
[1766578796032,0.01148,87315.0,87305.0,0.01145409]
[1766578796232,0.01148,87315.0,87306.0,0.01145396]
[1766578797089,0.08019694,87315.0,87304.0,0.01145422]
[1766578797489,0.02293278,87315.0,87305.0,0.01145409]
[1766578797901,0.01148,87315.0,87305.0,0.01145409]
[1766578798353,0.01148,87315.0,87306.0,0.01145396]
[1766578798755,0.01148,87316.0,87309.0,0.01145357]
[1766578799128,0.01148,87316.0,87308.0,0.06872217]
[1766578799461,0.01148,87316.0,87308.0,0.0114537]
[1766578800468,0.02293265,87316.0,87305.0,0.02293409]
[1766578800624,0.01145291,87314.0,87305.0,0.01148]
[1766578800830,0.0114537,87308.0,87304.0,0.01148]
[1766578801257,0.0114537,87308.0,87298.0,0.01145501]
[1766578801456,0.0114537,87308.0,87299.0,0.01148]
[1766578801457,0.01145383,87307.0,87299.0,0.01148]
[1766578801670,0.0114537,87308.0,87299.0,0.01148]
[1766578802083,0.06872226,87308.0,87299.0,0.01148]
[1766578802302,0.01145383,87307.0,87299.0,0.01148]
[1766578802596,0.01145436,87303.0,87299.0,0.00031179]
[1766578802802,0.01145252,87317.0,87307.0,0.000549]
[1766578803016,0.01145239,87318.0,87307.0,0.01145383]
[1766578803243,0.11911921,87317.0,87308.0,0.0114537]
[1766578803946,0.11911921,87317.0,87309.0,0.01145357]
[1766578804134,0.11911921,87317.0,87307.0,0.06872297]
[1766578804339,0.11911921,87317.0,87307.0,0.01145383]
[1766578804629,0.11911921,87317.0,87308.0,0.0114537]
[1766578804917,0.11911921,87317.0,87310.0,0.01145344]
[1766578805116,0.11911921,87317.0,87311.0,0.01145331]
[1766578805965,0.11911921,87317.0,87309.0,0.01145357]
[1766578806162,0.11911921,87317.0,87308.0,0.0114537]
[1766578806419,0.11911921,87317.0,87308.0,0.06872215]
[1766578806622,0.11911921,87317.0,87310.0,0.01145344]
[1766578807446,0.11911921,87317.0,87310.0,0.06872054]
[1766578807586,0.11911921,87317.0,87312.0,0.01145317]
[1766578808388,0.11911921,87317.0,87310.0,0.01145344]
[1766578808812,0.11911921,87317.0,87309.0,0.01145357]
[1766578809772,0.11911921,87317.0,87310.0,0.01145344]
[1766578809933,0.01148,87319.0,87310.0,0.01145344]
[1766578810274,0.11911921,87317.0,87312.0,0.01145317]
[1766578810631,0.11911921,87317.0,87311.0,0.06871984]
[1766578811581,0.11911921,87317.0,87311.0,0.01145331]
[1766578811782,0.11911921,87317.0,87310.0,0.01145344]
[1766578812499,0.22901637,87330.0,87311.0,0.01145331]
[1766578812699,0.08018579,87329.0,87317.0,0.06926412]
[1766578812919,0.08018579,87329.0,87317.0,0.01200152]
[1766578813131,0.10993667,87328.0,87318.0,0.01145239]
[1766578813343,0.10993667,87328.0,87319.0,0.06871322]
[1766578813515,0.10993667,87328.0,87320.0,0.0687125]
[1766578813738,0.10993667,87328.0,87321.0,0.01145199]
[1766578813928,0.10993667,87328.0,87322.0,0.01145186]
[1766578814374,0.10993667,87328.0,87318.0,0.01145239]
[1766578814546,0.10993667,87328.0,87320.0,0.01145213]
[1766578815305,0.10993667,87328.0,87321.0,0.01145199]
[1766578815935,0.10993667,87328.0,87321.0,0.06871196]
[1766578816279,0.01148,87329.0,87325.0,0.01145147]
[1766578816822,0.01148,87329.0,87324.0,0.0114516]
[1766578817025,0.10993667,87331.0,87326.0,0.01145134]
[1766578817227,0.0003563,87331.0,87325.0,0.01145147]
[1766578817993,0.0003563,87331.0,87324.0,0.06870906]
[1766578818420,0.0003563,87331.0,87325.0,0.01145147]
[1766578818756,0.0003563,87331.0,87326.0,0.01145134]
[1766578819620,0.0458,87341.0,87332.0,0.05725278]
[1766578819832,0.01148,87340.0,87332.0,0.01145055]
[1766578819992,0.01148,87340.0,87331.0,0.05725338]
[1766578820195,0.06872791,87340.0,87328.0,0.06870459]
[1766578820378,0.01144963,87339.0,87328.0,0.01145108]
[1766578820589,0.0229295,87340.0,87327.0,0.08018604]
[1766578820784,0.01148,87340.0,87329.0,0.0572547]
[1766578820988,0.01148,87340.0,87330.0,0.01145081]
[1766578821207,0.01148,87340.0,87331.0,0.01145068]
[1766578821409,0.01148,87340.0,87332.0,0.01145055]
[1766578821681,0.00010685,87341.0,87332.0,0.06870321]
[1766578821814,0.00010685,87341.0,87334.0,0.01145029]
[1766578822618,0.00010685,87341.0,87333.0,0.068702]
[1766578822827,0.00010685,87341.0,87332.0,0.08018212]
[1766578823216,0.00010685,87341.0,87332.0,0.01148]
[1766578823419,0.0114495,87340.0,87332.0,0.01148]
[1766578823668,0.01144963,87339.0,87332.0,0.01148]
[1766578823874,0.00010685,87341.0,87332.0,0.01148]
[1766578824468,0.0114495,87340.0,87332.0,0.01148]
[1766578824692,0.01155622,87341.0,87332.0,0.01148]
[1766578825032,0.00010685,87341.0,87332.0,0.02293055]
[1766578825211,0.00010685,87341.0,87332.0,0.01148]
[1766578825412,0.00010685,87341.0,87333.0,0.01148]
[1766578827718,0.00010685,87341.0,87335.0,0.01145016]
[1766578827944,8.5e-07,87341.0,87335.0,0.06870072]
[1766578828618,8.5e-07,87341.0,87335.0,0.01145016]
[1766578829037,8.5e-07,87341.0,87334.0,0.06870169]
[1766578829765,8.5e-07,87341.0,87334.0,0.01145029]
[1766578829943,8.5e-07,87341.0,87335.0,0.01148]
[1766578833146,0.00061826,87335.0,87327.0,0.05725594]
[1766578833347,0.12118,87334.0,87328.0,0.01148]
[1766578833588,0.12118,87334.0,87324.0,0.06870949]
[1766578833785,0.13263029,87334.0,87325.0,0.01148]
[1766578833988,0.12118,87334.0,87325.0,0.01148]
[1766578834195,0.12118,87334.0,87325.0,0.02293147]
[1766578834566,0.08618,87334.0,87325.0,0.02293147]
[1766578834784,0.08618,87334.0,87326.0,0.01145134]
[1766578834998,0.08618,87334.0,87325.0,0.02293147]
[1766578835388,0.08618,87334.0,87325.0,0.01148]
[1766578835579,0.09763029,87334.0,87325.0,0.01148]
[1766578835908,0.08618,87334.0,87325.0,0.02293147]
[1766578836311,0.08618,87334.0,87325.0,0.01148]
[1766578836958,0.08618,87334.0,87325.0,0.02293147]
[1766578838219,0.08618,87334.0,87325.0,0.01148]
[1766578838421,0.08618,87334.0,87325.0,0.02293147]
[1766578840578,0.08618,87334.0,87325.0,0.08018874]
[1766578840976,0.08618,87334.0,87325.0,0.06870874]